fUST/lending_fUST_20250725
["ID","MTS","AMOUNT","RATE_DAILY","PERIOD"]
[374790083,1753446650540,-1596.19,0.00021369,2]
[374790084,1753446650549,-678.92,0.00021369,2]
[374790085,1753446650559,-1238.21,0.00021369,2]
[374790086,1753446650568,-1434.65,0.00021369,2]
[374790087,1753446650578,-460.0,0.00021369,2]
[374790088,1753446650588,-469.39,0.00021369,2]
[374790089,1753446650597,-885.79,0.00021369,2]
[374790090,1753446650607,-1182.99,0.00021369,2]
[374790091,1753446650617,-258.29579809,0.00021369,2]
[374790092,1753446650627,-460.0,0.00021369,2]
[374790093,1753446650638,-544.36,0.00021369,2]
[374790094,1753446650648,-1059.6,0.00021369,2]
[374790095,1753446650658,-385.75,0.00021369,2]
[374790096,1753446650668,-753.31,0.00021369,2]
[374790097,1753446650678,-1227.54,0.00021369,2]
[374790098,1753446650688,-460.0,0.00021369,2]
[374790099,1753446650698,-460.0,0.00021369,2]
[374790100,1753446650708,-460.0,0.00021369,2]
[374790101,1753446650718,-351.16,0.00021369,2]
[374790102,1753446650728,-460.0,0.00021369,2]
[374790103,1753446650738,-496.04,0.00021369,2]
[374790104,1753446650748,-1026.89,0.00021369,2]
[374790105,1753446650758,-460.0,0.00021369,2]
[374790106,1753446650768,-460.0,0.00021369,2]
[374790107,1753446650777,-460.0,0.00021369,2]
[374790108,1753446650787,-2497.12,0.00021369,2]
[374790109,1753446650797,-1000.0,0.00021461,2]
[374790110,1753446650807,-2219.31768029,0.000215,2]
[374790111,1753446650817,-360.0,0.00021501,2]
[374790112,1753446650827,-152.704267,0.00021539,2]
[374790113,1753446650836,-151.0,0.00021543,2]
[374790114,1753446650846,-151.0,0.00021543,2]
[374790115,1753446650856,-368.337566,0.00021543,2]
[374790116,1753446650865,-368.337566,0.00021543,2]
[374790117,1753446650876,-2639.0411599,0.00021543,2]
[374790118,1753446650886,-214.7599002,0.0002155,3]
[374790119,1753446650897,-1080.79786783,0.00021555,5]
[374790120,1753446650907,-2450.67555093,0.00021616,2]
[374790121,1753446650917,-856.77,0.00021616,2]
[374790122,1753446650926,-400.1109256,0.00021616,2]
[374790123,1753446650936,-153.0,0.00021616,2]
[374790124,1753446650946,-1000.0,0.00021621,2]
[374790125,1753446650958,-460.0,0.00021643,2]
[374790126,1753446650967,-632.94,0.00021643,2]
[374790127,1753446650977,-460.0,0.00021643,2]
[374790128,1753446650987,-887.82,0.00021643,2]
[374790129,1753446650997,-520.02,0.00021643,2]
[374790130,1753446651006,-4130.28,0.00021643,2]
[374790131,1753446651016,-588.86,0.00021643,2]
[374790132,1753446651027,-460.0,0.00021643,2]
[374790133,1753446651036,-3401.29,0.00021643,2]
[374790134,1753446651046,-1596.19,0.00021643,2]
[374790135,1753446651056,-678.92,0.00021643,2]
[374790136,1753446651066,-1238.21,0.00021643,2]
[374790137,1753446651077,-1434.65,0.00021643,2]
[374790138,1753446651088,-460.0,0.00021643,2]
[374790139,1753446651098,-469.39,0.00021643,2]
[374790140,1753446651110,-885.79,0.00021643,2]
[374790141,1753446651120,-1182.99,0.00021643,2]
[374790142,1753446651131,-460.0,0.00021643,2]
[374790143,1753446651144,-1059.6,0.00021643,2]
[374790144,1753446651154,-753.31,0.00021643,2]
[374790145,1753446651282,-1227.54,0.00021643,2]
[374790146,1753446651292,-460.0,0.00021643,2]
[374790147,1753446651303,-257.15,0.00021643,2]
[374790148,1753446651313,-460.0,0.00021643,2]
[374790149,1753446651322,-460.0,0.00021643,2]
[374790150,1753446651331,-1026.89,0.00021643,2]
[374790151,1753446651341,-460.0,0.00021643,2]
[374790152,1753446651350,-2497.12,0.00021643,2]
[374790153,1753446651359,-153.0,0.00021699,2]
[374790154,1753446651369,-151.0,0.000217,3]
[374790155,1753446651379,-800.0,0.00021707,2]
[374790156,1753446651388,-153.0,0.00021726,2]
[374790157,1753446651398,-153.0,0.00021726,2]
[374790158,1753446651407,-577.7720337,0.00021726,2]
[374790159,1753446651417,-153.0,0.00021726,2]
[374790160,1753446651427,-577.7720337,0.00021726,2]
[374790161,1753446651436,-577.7720337,0.00021726,2]
[374790162,1753446651446,-577.7720337,0.00021726,2]
[374790163,1753446651455,-577.7720337,0.00021726,2]
[374790164,1753446651465,-577.7720337,0.00021726,2]
[374790165,1753446651475,-1080.79786783,0.00021797,6]
[374790166,1753446651484,-153.0,0.00021808,2]
[374790167,1753446651494,-1147.3896604,0.00021836,2]
[374790168,1753446651504,-577.7720337,0.00021836,2]
[374790169,1753446651513,-577.7720337,0.00021836,2]
[374790170,1753446651523,-153.0,0.00021836,2]
[374790171,1753446651532,-577.7720337,0.00021836,2]
[374790172,1753446651542,-577.7720337,0.00021836,2]
[374790173,1753446651551,-577.7720337,0.00021836,2]
[374790174,1753446651561,-577.7720337,0.00021836,2]
[374790175,1753446651570,-153.0,0.00021836,2]
[374790176,1753446651580,-577.7720337,0.00021836,2]
[374790177,1753446651589,-577.7720337,0.00021836,2]
[374790178,1753446651598,-153.0,0.00021836,2]
[374790179,1753446651607,-577.7720337,0.00021836,2]
[374790180,1753446651617,-577.7720337,0.00021836,2]
[374790181,1753446651626,-153.0,0.00021836,2]
[374790182,1753446651636,-577.7720337,0.00021836,2]
[374790183,1753446651647,-577.7720337,0.00021836,2]
[374790184,1753446651656,-577.7720337,0.00021836,2]
[374790185,1753446651666,-153.0,0.00021836,2]
[374790186,1753446651676,-577.7720337,0.00021836,2]
[374790187,1753446651685,-577.7720337,0.00021836,2]
[374790188,1753446651695,-153.0,0.00021836,2]
[374790189,1753446651705,-577.7720337,0.00021836,2]
[374790190,1753446651715,-153.0,0.00021836,2]
[374790191,1753446651724,-319.971473,0.00021836,2]
[374790192,1753446651734,-153.0,0.00021836,2]
[374790193,1753446651743,-153.0,0.00021836,2]
[374790194,1753446651752,-178.3051933,0.00021836,2]
[374790195,1753446651762,-153.0,0.00021836,2]
[374790196,1753446651771,-216.1,0.00021855,4]
[374790197,1753446651781,-587.0,0.00021875,2]
[374790198,1753446651790,-460.0,0.00021917,2]
[374790199,1753446651799,-632.94,0.00021917,2]
[374790200,1753446651809,-460.0,0.00021917,2]
[374790201,1753446651825,-887.82,0.00021917,2]
[374790202,1753446651839,-520.02,0.00021917,2]
[374790203,1753446651850,-4130.28,0.00021917,2]
[374790204,1753446651860,-588.86,0.00021917,2]
[374790205,1753446651870,-348.54,0.00021917,2]
[374790206,1753446651880,-3401.29,0.00021917,2]
[374790207,1753446651891,-1596.19,0.00021917,2]
[374790208,1753446651901,-678.92,0.00021917,2]
[374790209,1753446651911,-1238.21,0.00021917,2]
[374790210,1753446651921,-1434.65,0.00021917,2]
[374790211,1753446651931,-460.0,0.00021917,2]
[374790212,1753446651941,-469.39,0.00021917,2]
[374790213,1753446651952,-885.79,0.00021917,2]
[374790214,1753446651962,-1182.99,0.00021917,2]
[374790215,1753446651972,-460.0,0.00021917,2]
[374790216,1753446651982,-1059.6,0.00021917,2]
[374790217,1753446651991,-753.31,0.00021917,2]
[374790218,1753446652001,-1227.54,0.00021917,2]
[374790219,1753446652011,-460.0,0.00021917,2]
[374790220,1753446652021,-460.0,0.00021917,2]
[374790221,1753446652030,-460.0,0.00021917,2]
[374790222,1753446652041,-1026.89,0.00021917,2]
[374790223,1753446652051,-460.0,0.00021917,2]
[374790224,1753446652060,-2497.12,0.00021917,2]
[374790225,1753446652070,-429.8269109,0.00021918,2]
[374790226,1753446652080,-429.8269109,0.00021918,2]
[374790227,1753446652090,-429.8269109,0.00021918,2]
[374790228,1753446652100,-177.7876737,0.00021919,2]
[374790229,1753446652110,-8627.27,0.00022,7]
[374790230,1753446652120,-1849.81,0.00022,7]
[374790231,1753446652132,-2894.47,0.00022,7]
[374790232,1753446652144,-476.88235691,0.00022,7]
[374790233,1753446652154,-151.0,0.00022,7]
[374790234,1753446652164,-151.0,0.00022,7]
[374790235,1753446652175,-151.0,0.00022,7]
[374790236,1753446652184,-360.53,0.00022,2]
[374790237,1753446652194,-151.0,0.00022,2]
[374790238,1753446652204,-1500.0,0.00022009,2]
[374790239,1753446652214,-152.704267,0.00022022,3]
[374790240,1753446652225,-1080.79786783,0.00022038,6]
[374790241,1753446652235,-480.0,0.00022049,2]
[374790242,1753446652245,-2157.0,0.00022066,2]
[374790243,1753446652254,-969.0,0.00022066,2]
[374790244,1753446652264,-407.0,0.00022066,2]
[374790245,1753446652273,-421.487,0.00022066,2]
[374790246,1753446652283,-8668.56881264,0.00022076,2]
[374790247,1753446652292,-858.6087701,0.00022082,2]
[374790248,1753446652302,-151.0,0.000221,6]
[374790249,1753446652311,-428.4594248,0.0002211,2]
[374790250,1753446652321,-460.0,0.00022191,2]
[374790251,1753446652331,-632.94,0.00022191,2]
[374790252,1753446652340,-460.0,0.00022191,2]
[374790253,1753446652349,-887.82,0.00022191,2]
[374790254,1753446652359,-520.02,0.00022191,2]
[374790255,1753446652369,-4130.28,0.00022191,2]
[374790256,1753446652379,-588.86,0.00022191,2]
[374790257,1753446652388,-3401.29,0.00022191,2]
[374790258,1753446652398,-1596.19,0.00022191,2]
[374790259,1753446652408,-678.92,0.00022191,2]
[374790260,1753446652418,-1238.21,0.00022191,2]
[374790261,1753446652427,-1434.65,0.00022191,2]
[374790262,1753446652437,-460.0,0.00022191,2]
[374790263,1753446652447,-469.39,0.00022191,2]
[374790264,1753446652457,-885.79,0.00022191,2]
[374790265,1753446652466,-1182.99,0.00022191,2]
[374790266,1753446652476,-460.0,0.00022191,2]
[374790267,1753446652485,-151.0,0.00022191,7]
[374790268,1753446652495,-1059.6,0.00022191,2]
[374790269,1753446652505,-368.337566,0.00022191,7]
[374790270,1753446652515,-368.337566,0.00022191,7]
[374790271,1753446652525,-753.31,0.00022191,2]
[374790272,1753446652535,-1227.54,0.00022191,2]
[374790273,1753446652544,-460.0,0.00022191,2]
[374790274,1753446652554,-562.16,0.00022191,2]
[374790275,1753446652564,-460.0,0.00022191,2]
[374790276,1753446652575,-1026.89,0.00022191,2]
[374790277,1753446652584,-460.0,0.00022191,2]
[374790278,1753446652595,-2497.12,0.00022191,2]
[374790279,1753446652604,-150.0,0.00022199,2]
[374790280,1753446652615,-2596.42332189,0.00022216,2]
[374790281,1753446652624,-1000.0,0.00022251,2]
[374790282,1753446652634,-1080.79786783,0.00022279,6]
[374790283,1753446652644,-5514.0199896,0.00022371,2]
[374790284,1753446652654,-216.1,0.00022384,5]
[374790285,1753446652664,-151.0,0.000224,5]
[374790286,1753446652674,-153.0,0.00022438,2]
[374790287,1753446652683,-153.0,0.00022438,2]
[374790288,1753446652693,-1155.5440674,0.00022438,2]
[374790289,1753446652702,-306.0,0.00022438,2]
[374790290,1753446652712,-159.9857365,0.00022438,2]
[374790291,1753446652721,-159.9857365,0.00022438,2]
[374790292,1753446652731,-159.9857365,0.00022438,2]
[374790293,1753446652741,-178.3051933,0.00022438,2]
[374790294,1753446652751,-460.0,0.00022465,2]
[374790295,1753446652760,-151.0,0.00022465,7]
[374790296,1753446652769,-632.94,0.00022465,2]
[374790297,1753446652779,-887.82,0.00022465,2]
[374790298,1753446652789,-520.02,0.00022465,2]
[374790299,1753446652799,-4130.28,0.00022465,2]
[374790300,1753446652808,-1341.38,0.00022465,2]
[374790301,1753446652818,-588.86,0.00022465,2]
[374790302,1753446652828,-3401.29,0.00022465,2]
[374790303,1753446652838,-1596.19,0.00022465,2]
[374790304,1753446652847,-678.92,0.00022465,2]
[374790305,1753446652857,-1238.21,0.00022465,2]
[374790306,1753446652867,-1434.65,0.00022465,2]
[374790307,1753446652876,-381.84,0.00022465,2]
[374790308,1753446652886,-469.39,0.00022465,2]
[374790309,1753446652896,-885.79,0.00022465,2]
[374790310,1753446652906,-1182.99,0.00022465,2]
[374790311,1753446652915,-460.0,0.00022465,2]
[374790312,1753446652926,-1059.6,0.00022465,2]
[374790313,1753446652935,-753.31,0.00022465,2]
[374790314,1753446652945,-1227.54,0.00022465,2]
[374790315,1753446652954,-460.0,0.00022465,2]
[374790316,1753446652963,-460.0,0.00022465,2]
[374790317,1753446652973,-1026.89,0.00022465,2]
[374790318,1753446652983,-460.0,0.00022465,2]
[374790319,1753446652992,-2497.12,0.00022465,2]
[374790320,1753446653002,-204920.82345686,0.0002249,7]
[374790321,1753446653013,-360.53,0.000225,2]
[374790322,1753446653023,-1080.79786783,0.00022521,7]
[374790323,1753446653032,-577.7720337,0.00022548,2]
[374790324,1753446653042,-577.7720337,0.00022548,2]
[374790325,1753446653052,-306.0,0.00022548,2]
[374790326,1753446653062,-159.9857365,0.00022548,2]
[374790327,1753446653071,-159.9857365,0.00022548,2]
[374790328,1753446653081,-159.9857365,0.00022548,2]
[374790329,1753446653092,-159.9857365,0.00022548,2]
[374790330,1753446653103,-159.9857365,0.00022548,2]
[374790331,1753446653114,-178.3051933,0.00022548,2]
[374790332,1753446653124,-159.9857365,0.00022548,2]
[374790333,1753446653136,-178.3051933,0.00022548,2]
[374790334,1753446653147,-159.9857365,0.00022548,2]
[374790335,1753446653156,-178.3051933,0.00022548,2]
[374790336,1753446653166,-178.3051933,0.00022548,2]
[374790337,1753446653177,-159.9857365,0.00022548,2]
[374790338,1753446653187,-178.3051933,0.00022548,2]
[374790339,1753446653196,-159.8979755,0.00022548,2]
[374790340,1753446653207,-178.3051933,0.00022548,2]
[374790341,1753446653219,-178.3051933,0.00022548,2]
[374790342,1753446653228,-159.9857365,0.00022548,2]
[374790343,1753446653239,-178.3051933,0.00022548,2]
[374790344,1753446653248,-356.178383,0.00022548,2]
[374790345,1753446653258,-151.0,0.00022548,7]
[374790346,1753446653268,-1098.50610844,0.000226,4]
[374790347,1753446653278,-176.892421,0.00022603,2]
[374790348,1753446653287,-577.7720337,0.0002263,2]
[374790349,1753446653298,-577.7720337,0.0002263,2]
[374790350,1753446653309,-577.7720337,0.0002263,2]
[374790351,1753446653319,-207.2232168,0.0002263,2]
[374790352,1753446653328,-997.0312213,0.0002263,2]
[374790353,1753446653338,-159.9857365,0.0002263,2]
[374790354,1753446653348,-159.9857365,0.00022658,2]
[374790355,1753446653357,-180.2257617,0.00022658,2]
[374790356,1753446653468,-159.9857365,0.00022658,2]
[374790357,1753446653479,-159.9857365,0.00022658,2]
[374790358,1753446653490,-159.9857365,0.00022658,2]
[374790359,1753446653499,-178.3051933,0.00022658,2]
[374790360,1753446653509,-178.3051933,0.00022658,2]
[374790361,1753446653519,-159.9857365,0.00022658,2]
[374790362,1753446653528,-159.9857365,0.00022658,2]
[374790363,1753446653538,-178.3051933,0.00022658,2]
[374790364,1753446653549,-159.9857365,0.00022658,2]
[374790365,1753446653558,-178.3051933,0.00022658,2]
[374790366,1753446653569,-153.0,0.00022658,2]
[374790367,1753446653580,-178.3051933,0.00022658,2]
[374790368,1753446653590,-159.9857365,0.00022658,2]
[374790369,1753446653600,-178.3051933,0.00022658,2]
[374790370,1753446653612,-153.0,0.00022658,2]
[374790371,1753446653622,-159.9857365,0.00022658,2]
[374790372,1753446653632,-159.9857365,0.00022658,2]
[374790373,1753446653644,-178.3051933,0.00022658,2]
[374790374,1753446653654,-153.0,0.00022658,2]
[374790375,1753446653664,-178.3051933,0.00022658,2]
[374790376,1753446653674,-159.9857365,0.00022658,2]
[374790377,1753446653685,-178.3051933,0.00022658,2]
[374790378,1753446653696,-159.9857365,0.00022658,2]
[374790379,1753446653707,-159.9857365,0.00022658,2]
[374790380,1753446653716,-153.0,0.00022658,2]
[374790381,1753446653726,-178.3051933,0.00022658,2]
[374790382,1753446653736,-159.9857365,0.00022658,2]
[374790383,1753446653747,-178.3051933,0.00022658,2]
[374790384,1753446653757,-159.9857365,0.00022658,2]
[374790385,1753446653768,-153.0,0.00022658,2]
[374790386,1753446653780,-178.3051933,0.00022658,2]
[374790387,1753446653790,-159.9857365,0.00022658,2]
[374790388,1753446653799,-178.3051933,0.00022658,2]
[374790389,1753446653808,-159.9857365,0.00022658,2]
[374790390,1753446653818,-178.3051933,0.00022658,2]
[374790391,1753446653828,-159.9857365,0.00022658,2]
[374790392,1753446653838,-178.3051933,0.00022658,2]
[374790393,1753446653847,-312.680395,0.00022658,2]
[374790394,1753446653857,-159.9857365,0.00022658,2]
[374790395,1753446653867,-178.3051933,0.00022658,2]
[374790396,1753446653877,-159.9857365,0.00022658,2]
[374790397,1753446653887,-159.9857365,0.00022658,2]
[374790398,1753446653898,-159.9857365,0.00022658,2]
[374790399,1753446653908,-159.9857365,0.00022658,2]
[374790400,1753446653918,-178.3051933,0.00022658,2]
[374790401,1753446653928,-178.3051933,0.00022658,2]
[374790402,1753446653939,-159.9857365,0.00022658,2]
[374790403,1753446653949,-159.9857365,0.00022658,2]
[374790404,1753446653959,-178.3051933,0.00022658,2]
[374790405,1753446653969,-159.9857365,0.00022658,2]
[374790406,1753446653979,-178.3051933,0.00022658,2]
[374790407,1753446653988,-178.3051933,0.00022658,2]
[374790408,1753446653998,-178.3051933,0.00022658,2]
[374790409,1753446654007,-178.3051933,0.00022658,2]
[374790410,1753446654017,-175.7382008,0.00022658,2]
[374790411,1753446654027,-150.0,0.00022735,2]
[374790412,1753446654036,-460.0,0.00022739,2]
[374790413,1753446654046,-632.94,0.00022739,2]
[374790414,1753446654055,-887.82,0.00022739,2]
[374790415,1753446654064,-151.0,0.00022739,7]
[374790416,1753446654074,-151.0,0.00022739,7]
[374790417,1753446654084,-520.02,0.00022739,2]
[374790418,1753446654094,-4130.28,0.00022739,2]
[374790419,1753446654104,-588.86,0.00022739,2]
[374790420,1753446654113,-3401.29,0.00022739,2]
[374790421,1753446654123,-1596.19,0.00022739,2]
[374790422,1753446654133,-678.92,0.00022739,2]
[374790423,1753446654147,-1238.21,0.00022739,2]
[374790424,1753446654156,-1434.65,0.00022739,2]
[374790425,1753446654166,-469.39,0.00022739,2]
[374790426,1753446654175,-885.79,0.00022739,2]
[374790427,1753446654186,-1182.99,0.00022739,2]
[374790428,1753446654196,-460.0,0.00022739,2]
[374790429,1753446654207,-151.0,0.00022739,7]
[374790430,1753446654216,-1059.6,0.00022739,2]
[374790431,1753446654227,-368.337566,0.00022739,7]
[374790432,1753446654237,-368.337566,0.00022739,7]
[374790433,1753446654247,-753.31,0.00022739,2]
[374790434,1753446654259,-1227.54,0.00022739,2]
[374790435,1753446654270,-460.0,0.00022739,2]
[374790436,1753446654281,-460.0,0.00022739,2]
[374790437,1753446654293,-1026.89,0.00022739,2]
[374790438,1753446654305,-345.38030352,0.00022739,2]
[374790439,1753446654315,-2497.12,0.00022739,2]
[374790440,1753446654328,-1080.79786783,0.00022762,7]
[374790441,1753446654338,-160.0,0.00022776,3]
[374790442,1753446654348,-254.0069119,0.00022795,2]
[374790443,1753446654359,-168.0,0.00022821,2]
[374790444,1753446654368,-177.7876737,0.00022896,2]
[374790445,1753446654378,-336.17,0.000229,2]
[374790446,1753446654388,-24332.29709805,0.000229,7]
[374790447,1753446654398,-254.0069119,0.00022904,2]
[374790448,1753446654408,-151.30489874,0.00022907,2]
[374790449,1753446654417,-215.0738,0.00022907,2]
[374790450,1753446654427,-14064.86338015,0.00022907,2]
[374790451,1753446654436,-216.1,0.00022913,5]
[374790452,1753446654445,-10475.13661885,0.00022929,2]
[374790453,1753446654455,-360.53,0.00022981,2]
[374790454,1753446654464,-152.704267,0.00022983,2]
[374790455,1753446654474,-160.0,0.00023,2]
[374790456,1753446654483,-840.4016166,0.00023,3]
[374790457,1753446654492,-1080.79786783,0.00023003,8]
[374790458,1753446654502,-460.0,0.00023013,2]
[374790459,1753446654511,-632.94,0.00023013,2]
[374790460,1753446654521,-887.82,0.00023013,2]
[374790461,1753446654531,-520.02,0.00023013,2]
[374790462,1753446654540,-4130.28,0.00023013,2]
[374790463,1753446654549,-588.86,0.00023013,2]
[374790464,1753446654558,-3401.29,0.00023013,2]
[374790465,1753446654568,-1596.19,0.00023013,2]
[374790466,1753446654578,-678.92,0.00023013,2]
[374790467,1753446654587,-1238.21,0.00023013,2]
[374790468,1753446654598,-1434.65,0.00023013,2]
[374790469,1753446654609,-469.39,0.00023013,2]
[374790470,1753446654619,-885.79,0.00023013,2]
[374790471,1753446654630,-1182.99,0.00023013,2]
[374790472,1753446654639,-1059.6,0.00023013,2]
[374790473,1753446654650,-753.31,0.00023013,2]
[374790474,1753446654659,-1227.54,0.00023013,2]
[374790475,1753446654668,-460.0,0.00023013,2]
[374790476,1753446654677,-460.0,0.00023013,2]
[374790477,1753446654687,-1026.89,0.00023013,2]
[374790478,1753446654696,-2497.12,0.00023013,2]
[374790479,1753446654706,-254.0069119,0.00023014,2]
[374790480,1753446654715,-8627.27,0.000231,7]
[374790481,1753446654724,-1849.81,0.000231,7]
[374790482,1753446654734,-2894.47,0.000231,7]
[374790483,1753446654743,-151.0,0.000231,7]
[374790484,1753446654752,-254.0069119,0.00023123,2]
[374790485,1753446654762,-9792.89950152,0.00023126,2]
[374790486,1753446654771,-168.0,0.00023133,2]
[374790487,1753446654780,-509.55,0.00023167,7]
[374790488,1753446654790,-254.0069119,0.00023233,2]
[374790489,1753446654799,-1080.79786783,0.00023245,8]
[374790490,1753446654809,-178.3051933,0.0002326,2]
[374790491,1753446654819,-178.3051933,0.0002326,2]
[374790492,1753446654828,-509.55,0.00023267,5]
[374790493,1753446654837,-152.704267,0.00023281,3]
[374790494,1753446654847,-300.0,0.00023283,2]
[374790495,1753446654856,-460.0,0.00023287,2]
[374790496,1753446654866,-632.94,0.00023287,2]
[374790497,1753446654875,-887.82,0.00023287,2]
[374790498,1753446654884,-520.02,0.00023287,2]
[374790499,1753446654894,-4130.28,0.00023287,2]
[374790500,1753446654903,-588.86,0.00023287,2]
[374790501,1753446654913,-3401.29,0.00023287,2]
[374790502,1753446654923,-1596.19,0.00023287,2]
[374790503,1753446654932,-678.92,0.00023287,2]
[374790504,1753446654942,-1238.21,0.00023287,2]
[374790505,1753446654951,-1434.65,0.00023287,2]
[374790506,1753446654961,-469.39,0.00023287,2]
[374790507,1753446654971,-885.79,0.00023287,2]
[374790508,1753446654980,-1182.99,0.00023287,2]
[374790509,1753446654990,-151.0,0.00023287,7]
[374790510,1753446655000,-1059.6,0.00023287,2]
[374790511,1753446655009,-368.337566,0.00023287,7]
[374790512,1753446655019,-368.337566,0.00023287,7]
[374790513,1753446655029,-753.31,0.00023287,2]
[374790514,1753446655039,-1227.54,0.00023287,2]
[374790515,1753446655048,-460.0,0.00023287,2]
[374790516,1753446655057,-460.0,0.00023287,2]
[374790517,1753446655068,-1026.89,0.00023287,2]
[374790518,1753446655077,-151.0,0.00023288,7]
[374790519,1753446655087,-30778.82,0.000233,2]
[374790520,1753446655097,-151.0,0.000233,7]
[374790521,1753446655106,-151.0,0.000233,7]
[374790522,1753446655116,-151.0,0.000233,7]
[374790523,1753446655126,-254.0069119,0.00023342,2]
[374790524,1753446655138,-509.55,0.00023367,2]
[374790525,1753446655148,-6139.22379546,0.000234,2]
[374790526,1753446655158,-1285.15,0.00023418,2]
[374790527,1753446655167,-216.1,0.00023442,6]
[374790528,1753446655178,-254.0069119,0.00023452,2]
[374790529,1753446655187,-356.6103866,0.00023452,2]
[374790530,1753446655196,-178.3051933,0.00023452,2]
[374790531,1753446655206,-178.3051933,0.00023452,2]
[374790532,1753446655216,-178.3051933,0.00023452,2]
[374790533,1753446655227,-509.55,0.00023467,5]
[374790534,1753446655236,-360.53,0.00023472,2]
[374790535,1753446655246,-1080.79786783,0.00023486,9]
[374790536,1753446655255,-2596.42332189,0.00023514,2]
[374790537,1753446655266,-421.780334,0.0002352,8]
[374790538,1753446655275,-460.0,0.00023561,2]
[374790539,1753446655285,-632.94,0.00023561,2]
[374790540,1753446655295,-887.82,0.00023561,2]
[374790541,1753446655304,-520.02,0.00023561,2]
[374790542,1753446655314,-4130.28,0.00023561,2]
[374790543,1753446655323,-588.86,0.00023561,2]
[374790544,1753446655333,-3401.29,0.00023561,2]
[374790545,1753446655342,-1596.19,0.00023561,2]
[374790546,1753446655353,-678.92,0.00023561,2]
[374790547,1753446655362,-1238.21,0.00023561,2]
[374790548,1753446655371,-1434.65,0.00023561,2]
[374790549,1753446655381,-469.39,0.00023561,2]
[374790550,1753446655390,-885.79,0.00023561,2]
[374790551,1753446655479,-1182.99,0.00023561,2]
[374790552,1753446655490,-1059.6,0.00023561,2]
[374790553,1753446655499,-753.31,0.00023561,2]
[374790554,1753446655509,-1227.54,0.00023561,2]
[374790555,1753446655518,-460.0,0.00023561,2]
[374790556,1753446655528,-460.0,0.00023561,2]
[374790557,1753446655537,-1026.89,0.00023561,2]
[374790558,1753446655546,-254.0069119,0.00023562,2]
[374790559,1753446655556,-509.55,0.00023567,5]
[374790560,1753446655565,-509.55,0.00023667,2]
[374790561,1753446655575,-254.0069119,0.00023671,2]
[374790562,1753446655586,-1602.35375219,0.00023713,2]
[374790563,1753446655595,-168.0,0.0002372,2]
[374790564,1753446655605,-239.5629117,0.00023726,2]
[374790565,1753446655614,-153.0,0.00023726,2]
[374790566,1753446655624,-153.0,0.00023726,2]
[374790567,1753446655634,-153.0,0.00023726,2]
[374790568,1753446655645,-153.0,0.00023726,2]
[374790569,1753446655655,-153.0,0.00023726,2]
[374790570,1753446655665,-153.0,0.00023726,2]
[374790571,1753446655674,-153.0,0.00023726,2]
[374790572,1753446655684,-1080.79786783,0.00023728,9]
[374790573,1753446655694,-155.84,0.00023731,4]
[374790574,1753446655704,-173.21,0.00023731,4]
[374790575,1753446655714,-168.0,0.00023732,2]
[374790576,1753446655723,-152.704267,0.0002375,30]
[374790577,1753446655733,-151.0,0.0002376,2]
[374790578,1753446655743,-462.0,0.0002376,2]
[374790579,1753446655752,-151.0,0.0002376,2]
[374790580,1753446655762,-151.0,0.0002376,2]
[374790581,1753446655771,-151.0,0.0002376,2]
[374790582,1753446655781,-151.0,0.0002376,2]